bitfinex-derivatives/quotes_BNBF0:USTF0_20250710
["timestamp","ask_amount","ask_price","bid_price","bid_amount"]
[1752110846399,3.35815621,668.76,668.28,1.5247564]
[1752110846606,3.35815621,668.76,668.29,1.5247564]
[1752110846899,3.35815621,668.76,668.3,1.5247564]
[1752110847202,3.35815621,668.76,668.31,1.5247564]
[1752110847403,3.35815621,668.76,668.32,1.5247564]
[1752110847703,3.35815621,668.76,668.16,1.352]
[1752110847903,3.35815621,668.76,668.17,1.52463479]
[1752110848103,3.35815621,668.76,668.18,1.52463479]
[1752110848303,3.35815621,668.76,668.19,1.52463479]
[1752110848598,3.35815621,668.76,668.2,1.52463479]
[1752110848800,3.35815621,668.76,668.16,1.352]
[1752110848801,3.35815621,668.76,668.21,1.52463479]
[1752110849005,3.35815621,668.76,668.22,1.52463479]
[1752110849200,3.35815621,668.76,668.23,1.52463479]
[1752110849405,3.35815621,668.75,668.24,1.52463479]
[1752110849604,3.35815621,668.75,668.16,1.352]
[1752110849605,3.35815621,668.75,668.25,1.52463479]
[1752110849801,3.35815621,668.75,668.26,1.52463479]
[1752110850105,3.35815621,668.75,668.27,1.52463479]
[1752110850305,3.35815621,668.76,668.28,1.52463479]
[1752110850504,3.35815621,668.76,668.29,1.52463479]
[1752110850702,3.35815621,668.75,668.3,1.52463479]
[1752110850902,3.35815621,668.75,668.31,1.52463479]
[1752110851101,3.35815621,668.75,668.16,1.352]
[1752110851304,3.35815621,668.73,668.17,1.52456303]
[1752110851501,3.35815621,668.73,668.18,1.52456303]
[1752110851701,3.35815621,668.73,668.19,1.52456303]
[1752110852001,3.35815621,668.73,668.2,1.52456303]
[1752110852205,2.23890919,668.62,668.16,1.352]
[1752110854706,2.23890919,668.75,668.16,1.352]
[1752110856806,2.23890919,668.74,668.16,1.352]
[1752110864305,2.23890919,668.75,668.16,1.352]
[1752110864511,2.23890919,668.66,668.16,1.352]
[1752110867815,2.23890919,668.65,668.16,1.352]
[1752110868011,2.23890919,668.66,668.16,1.352]
[1752110872619,2.23890919,668.65,668.16,1.352]
[1752110873520,2.23890919,668.68,668.16,1.352]
[1752110875319,2.23890919,668.67,668.16,1.352]
[1752110875517,2.23890919,668.69,668.16,1.352]
[1752110876318,2.23890919,668.68,668.16,1.352]
[1752110878227,2.23890919,668.67,668.16,1.352]
[1752110878427,2.23890919,668.67,668.08,1.68004743]
[1752110878627,2.23890919,668.67,668.07,1.68004743]
[1752110879623,2.23890919,668.66,668.08,1.68004743]
[1752110880729,2.23890919,668.62,668.04,1.68004743]
[1752110881032,2.23890919,668.63,668.03,1.68004743]
[1752110882228,2.23890919,668.63,668.02,1.68004743]
[1752110883133,2.23890919,668.64,668.02,1.68004743]
[1752110883428,2.23890919,668.64,668.03,1.68004743]
[1752110883632,2.23890919,668.63,668.03,1.68004743]
[1752110885334,2.23890919,668.62,668.03,1.68004743]
[1752110887430,2.23890919,668.63,668.03,1.68004743]
[1752110889334,2.23890919,668.62,668.04,1.68004743]
[1752110890139,2.23890919,668.61,668.04,1.68004743]
[1752110890339,2.23890919,668.62,668.04,1.68004743]
[1752110890937,2.23890919,668.6,668.05,1.68004743]
[1752110892438,2.23890919,668.59,668.06,1.68004743]
[1752110897139,2.23890919,668.59,668.05,1.68004743]
[1752110897344,2.23890919,668.58,668.07,1.68004743]
[1752110898540,2.23890919,668.59,668.06,1.68004743]
[1752110898941,2.23890919,668.58,668.06,1.68004743]
[1752110900143,2.23890919,668.59,668.06,1.68004743]
[1752110900548,2.23890919,668.58,668.07,1.68004743]
[1752110901845,2.23890919,668.58,668.06,1.68004743]
[1752110902751,2.23890919,668.59,668.05,1.68004743]
[1752110904151,2.23890919,668.6,668.05,1.68004743]
[1752110905456,2.23890919,668.59,668.05,1.68004743]
[1752110906148,2.23890919,668.59,668.06,1.68004743]
[1752110907449,2.23890919,668.59,667.97,0.26029006]
[1752110907654,2.23890919,668.59,668.06,1.68125996]
[1752110908559,2.23890919,668.58,668.06,1.68125996]
[1752110912555,2.23890919,668.57,668.07,1.68125996]
[1752110916465,2.23890919,668.58,668.07,1.68125996]
[1752110917163,2.23890919,668.57,668.07,1.68125996]
[1752110919471,2.23890919,668.58,668.06,1.68125996]
[1752110920871,2.23890919,668.58,668.07,1.68125996]
[1752110922573,2.23890919,668.57,668.06,1.68125996]
[1752110923276,2.23890919,668.56,668.05,1.68125996]
[1752110923673,2.23890919,668.59,668.03,1.68125996]
[1752110925175,2.23890919,668.59,668.04,1.68125996]
[1752110926379,2.23890919,668.58,668.04,1.68125996]
[1752110927280,2.23890919,668.59,668.03,1.68125996]
[1752110928180,2.23890919,668.59,668.04,1.68125996]
[1752110929182,2.23890919,668.58,668.04,1.68125996]
[1752110929583,2.23890919,668.59,668.04,1.68125996]
[1752110930278,2.23890919,668.58,668.04,1.68125996]
[1752110933482,2.23890919,668.55,668.06,1.68125996]
[1752110935079,2.23890919,668.55,668.07,1.68125996]
[1752110935385,2.23890919,668.55,668.06,1.68125996]
[1752110935586,2.23890919,668.58,668.04,1.68125996]
[1752110936185,2.23890919,668.58,668.05,1.68125996]
[1752110937282,2.23890919,668.57,668.05,1.68125996]
[1752110938085,2.23890919,668.57,668.06,1.68125996]
[1752110938286,2.23890919,668.57,668.05,1.68125996]
[1752110938887,2.23890919,668.61,668.02,1.68125996]
[1752110939087,2.23890919,668.6,668.03,1.68125996]
[1752110940689,2.23890919,668.61,668.02,1.68125996]
[1752110940983,2.23890919,668.62,668.03,1.68125996]
[1752110941185,2.23890919,668.62,668.03,3.68725996]
[1752110941384,2.23890919,668.63,668.03,2.006]
[1752110941587,2.23890919,668.62,668.03,2.006]
[1752110941788,2.23890919,668.63,668.03,2.006]
[1752110941986,2.23890919,668.6,668.04,1.68125996]
[1752110942186,2.23890919,668.61,668.05,1.68125996]
[1752110944788,2.23890919,668.61,668.04,1.68125996]
[1752110944990,2.23890919,668.61,668.05,1.68125996]
[1752110945993,2.23890919,668.62,668.04,1.68125996]
[1752110948991,2.23890919,668.61,668.04,1.68125996]
[1752110949292,2.23890919,668.62,668.04,1.68125996]
[1752110949693,2.23890919,668.61,668.04,1.68125996]
[1752110949994,2.23890919,668.62,668.04,1.68125996]
[1752110950394,2.23890919,668.61,668.05,1.68125996]
[1752110953497,2.23890919,668.62,668.04,1.68125996]
[1752110953794,2.23890919,668.6,668.05,1.68125996]
[1752110954098,2.23890919,668.61,668.05,1.68125996]
[1752110954598,2.23890919,668.65,668.08,1.68125996]
[1752110957200,2.23890919,668.66,668.08,1.68125996]
[1752110958302,2.23890919,668.66,668.07,1.68125996]
[1752110958802,2.23890919,668.67,668.06,1.68125996]
[1752110959002,2.23890919,668.71,668.1,1.68125996]
[1752110959298,2.23890919,668.71,668.03,2.006]
[1752110959299,2.23890919,668.71,668.09,1.68125996]
[1752110960403,2.23890919,668.72,668.09,1.68125996]
[1752110960605,2.23890919,668.75,668.06,1.68125996]
[1752110962500,2.23890919,668.76,668.06,1.68125996]
[1752110963306,2.23890919,668.76,668.05,1.68125996]
[1752110963504,2.23890919,668.76,668.06,1.68125996]
[1752110964004,2.23890919,668.75,668.07,1.68125996]
[1752110964401,2.23890919,668.75,668.06,1.68125996]
[1752110964901,2.23890919,668.75,668.07,1.494]
[1752110967601,2.23890919,668.76,668.07,1.494]
[1752110968707,2.23890919,668.75,668.07,1.494]
[1752110970604,2.23890919,668.7,668.1,1.68125996]
[1752110971809,2.23890919,668.7,668.07,1.494]
[1752110972008,2.23890919,668.7,668.1,1.68030025]
[1752110972411,2.23890919,668.71,668.1,1.68030025]
[1752110972910,2.23890919,668.7,668.1,1.68030025]
[1752110977509,2.23890919,668.67,668.07,1.494]
[1752110977713,2.23890919,668.67,668.12,1.67999657]
[1752110979313,2.23890919,668.68,668.12,1.67999657]
[1752110980716,2.23890919,668.67,668.12,1.67999657]
[1752110984216,2.23890919,668.69,668.11,1.67999657]
[1752110988924,2.23890919,668.69,668.07,1.494]
[1752110989128,2.23890919,668.69,668.11,1.67989905]
[1752110990026,2.23890919,668.71,668.09,1.67989905]
[1752110991229,2.23890919,668.71,668.1,1.67989905]
[1752110993331,2.23890919,668.71,668.09,1.67989905]
[1752110994129,2.23890919,668.71,668.1,1.67989905]
[1752110995229,0.26025989,668.77,668.1,1.67989905]
[1752110995230,2.23890919,668.7,668.1,1.67989905]
[1752110998230,2.23890919,668.7,668.11,1.67989905]
[1752110999738,2.23890919,668.68,668.12,1.67989905]
[1752111001538,2.23890919,668.67,668.13,1.67989905]
[1752111002835,2.23890919,668.66,668.14,1.67989905]
[1752111003034,2.23890919,668.68,668.12,1.67989905]
[1752111004334,2.23890919,668.68,668.13,1.67989905]
[1752111004538,2.23890919,668.67,668.13,1.67989905]
[1752111005335,2.23890919,668.88,668.0,0.26032511]
[1752111005539,0.26025405,668.97,668.24,1.67989905]
[1752111006638,0.26025405,668.97,668.22,1.67989905]
[1752111006837,0.26025405,668.97,668.23,1.67989905]
[1752111007444,0.26025405,668.97,668.22,1.67989905]
[1752111008442,0.26025405,668.97,668.21,1.67989905]
[1752111009144,0.26025405,668.97,668.22,1.67989905]
[1752111009544,0.26025405,668.97,668.21,1.67989905]
[1752111010547,0.26025405,668.97,668.2,1.67989905]
[1752111011751,0.26025405,668.97,668.19,1.67989905]
[1752111012245,0.26025405,668.97,668.21,1.67989905]
[1752111015145,0.26025405,668.97,668.22,1.67989905]
[1752111016645,0.26025405,668.97,668.27,1.67989905]
[1752111018646,0.26025405,668.97,668.26,1.67989905]
[1752111019247,0.26025405,668.97,668.27,1.67989905]
[1752111022053,0.26025405,668.97,668.14,1.483]
[1752111022054,0.26025405,668.97,668.28,1.67989905]
[1752111022952,0.26025405,668.97,668.29,1.67989905]
[1752111024054,0.26025405,668.97,668.28,1.67989905]
[1752111026550,0.26025405,668.97,668.27,1.67989905]
[1752111027652,0.26025405,668.97,668.24,1.67989905]
[1752111032659,0.26025405,668.97,668.25,3.19827577]
[1752111032956,0.26025405,668.97,668.26,1.51837672]
[1752111033155,0.26025405,668.97,668.27,1.51837672]
[1752111033456,0.26025405,668.97,668.28,1.51837672]
[1752111033658,0.26025405,668.97,668.29,1.51837672]
[1752111033855,0.26025405,668.97,668.3,1.51837672]
[1752111034060,0.26025405,668.97,668.31,1.51837672]
[1752111034360,0.26025405,668.97,668.32,1.51837672]
[1752111034560,0.26025405,668.97,668.33,1.51837672]
[1752111034859,0.26025405,668.97,668.34,1.51837672]
[1752111035059,0.26025405,668.97,668.35,1.51837672]
[1752111035355,0.26025405,668.97,668.36,1.51837672]
[1752111035553,0.26025405,668.97,668.37,1.51837672]
[1752111035758,0.26025405,668.97,668.38,1.51837672]
[1752111035954,0.26025405,668.97,668.39,1.51837672]
[1752111036259,0.26025405,668.97,668.4,1.51837672]
[1752111036462,0.26025405,668.97,668.41,1.51837672]
[1752111036657,0.26025405,668.97,668.42,1.51837672]
[1752111036857,0.26025405,668.97,668.43,1.51837672]
[1752111037057,0.26025405,668.97,668.44,1.51840483]
[1752111037261,0.26025405,668.97,668.45,1.51840483]
[1752111037460,0.26025405,668.97,668.46,1.51840483]
[1752111037663,0.26025405,668.97,668.47,1.51840483]
[1752111037862,0.26025405,668.97,668.48,1.51840483]
[1752111038060,0.26025405,668.97,668.26,1.67322386]
[1752111038260,0.26025405,668.97,668.27,1.5184353]
[1752111038463,0.26025405,668.97,668.28,1.5184353]
[1752111038760,0.26025405,668.97,668.29,1.5184353]
[1752111039060,0.26025405,668.97,668.3,1.5184353]
[1752111039359,0.26025405,668.97,668.31,1.5184353]
[1752111039663,0.26025405,668.97,668.32,1.5184353]
[1752111039863,0.26025405,668.97,668.33,1.5184353]
[1752111040062,0.26025405,668.97,668.34,1.5184353]
[1752111040267,0.26025405,668.97,668.35,1.5184353]
[1752111040464,0.26025405,668.97,668.36,1.5184353]
[1752111040661,0.26025405,668.97,668.37,1.5184353]
[1752111040862,0.26025405,668.97,668.38,1.5184353]
[1752111041066,0.26025405,668.97,668.39,1.5184353]
[1752111041266,0.26025405,668.97,668.4,1.5184353]
[1752111041464,0.26025405,668.97,668.41,1.5184353]
[1752111041673,0.26025405,668.97,668.42,1.5184353]
[1752111041868,0.26025405,668.97,668.43,1.5184353]
[1752111042064,0.26025405,668.97,668.44,1.5184353]
[1752111042364,0.26025405,668.97,668.45,1.5184353]
[1752111042568,0.26025405,668.97,668.46,1.5184353]
[1752111042768,0.26025405,668.97,668.47,1.5184353]
[1752111043065,0.26025405,668.97,668.26,1.67322386]
[1752111043066,0.26025405,668.97,668.48,1.5184353]
[1752111043264,0.26025405,668.97,668.26,1.67322386]
[1752111043565,0.26025405,668.97,668.27,3.19204859]
[1752111043768,0.26025405,668.97,668.28,1.51882473]
[1752111043964,0.26025405,668.97,668.29,1.51882473]
[1752111044164,0.26025405,668.97,668.3,1.51882473]
[1752111044368,0.26025405,668.97,668.14,1.483]
[1752111044369,0.26025405,668.97,668.31,1.51882473]
[1752111044670,0.26025405,668.97,668.32,1.51882473]
[1752111044863,0.26025405,668.97,668.33,1.51882473]
[1752111045065,0.26025405,668.97,668.34,1.51882473]
[1752111045369,0.26025405,668.97,668.35,1.51882473]
[1752111045566,0.26025405,668.97,668.36,1.51882473]
[1752111045769,0.26025405,668.97,668.37,1.51882473]
[1752111045971,0.26025405,668.97,668.38,1.51882473]
[1752111046171,0.26025405,668.97,668.39,1.51882473]
[1752111046471,0.26025405,668.97,668.4,1.51882473]
[1752111046770,0.26025405,668.97,668.41,1.51882473]
[1752111046966,0.26025405,668.97,668.42,1.51882473]
[1752111047169,0.26025405,668.97,668.43,1.51882473]
[1752111047371,0.26025405,668.97,668.44,1.51882473]
[1752111047571,0.26025405,668.97,668.45,1.51882473]
[1752111047768,0.26025405,668.97,668.46,1.51882473]
[1752111047973,0.26025405,668.97,668.47,1.51882473]
[1752111048270,0.26025405,668.97,668.48,1.51882473]
[1752111048469,0.26025405,668.97,668.49,1.51882473]
[1752111048673,0.26025405,668.97,668.5,1.51882473]
[1752111048872,0.26025405,668.97,668.14,1.483]
[1752111048873,0.26025405,668.97,668.14,3.15668646]
[1752111049073,0.26025405,668.97,668.15,1.51941863]
[1752111049373,0.26025405,668.97,668.16,1.51941863]
[1752111049570,0.26025405,668.97,668.17,1.51941863]
[1752111049872,0.26025405,668.97,668.14,1.483]
[1752111049873,0.26025405,668.97,668.18,1.51941863]
[1752111050072,0.26025405,668.97,668.19,1.51941863]
[1752111050368,0.26025405,668.97,668.2,1.51941863]
[1752111050568,0.26025405,668.97,668.21,1.51941863]
[1752111050770,0.26025405,668.97,668.22,1.51941863]
[1752111051075,0.26025405,668.97,668.23,1.51941863]
[1752111051373,0.26025405,668.97,668.24,1.51941863]
[1752111051571,0.26025405,668.97,668.25,1.51941863]
[1752111051769,0.26025405,668.97,668.26,1.51941863]
[1752111051973,0.26025405,668.97,668.27,1.51941863]
[1752111052175,0.26025405,668.97,668.28,1.51941863]
[1752111052376,0.26025405,668.97,668.29,1.51941863]
[1752111052573,0.26025405,668.97,668.3,1.51941863]
[1752111052777,0.26025405,668.97,668.31,1.51941863]
[1752111053074,0.26025405,668.97,668.32,1.51941863]
[1752111053277,0.26025405,668.97,668.33,1.51941863]
[1752111053478,0.26025405,668.97,668.34,1.51941863]
[1752111053679,0.26025405,668.97,668.35,1.51941863]
[1752111053874,0.26025405,668.97,668.36,1.51941863]
[1752111054079,0.26025405,668.97,668.37,1.51941863]
[1752111054676,0.26025405,668.97,668.14,1.483]
[1752111057678,0.26025405,668.97,668.0,0.26032511]
[1752111061080,0.26025405,668.97,668.01,3.0274285]
[1752111061284,0.26025405,668.97,668.24,1.6776612]
[1752111061486,0.26025405,668.97,668.25,3.2000897]
[1752111061684,0.26025405,668.97,668.26,1.5224285]
[1752111061882,0.26025405,668.97,668.27,1.5224285]
[1752111062081,0.26025405,668.97,668.28,1.5224285]
[1752111062283,0.26025405,668.97,668.29,1.5224285]
[1752111062583,0.26025405,668.97,668.26,1.6776612]
[1752111063499,0.26025405,668.97,668.28,1.6776612]
[1752111064389,2.2306827,668.96,668.31,1.6776612]
[1752111065090,2.2306827,668.95,668.32,1.6776612]
[1752111067896,2.2306827,668.91,668.35,1.6776612]
[1752111068797,2.2306827,668.91,668.35,1.6814167]
[1752111068998,2.2306827,668.89,668.37,1.6814167]
[1752111071900,2.2306827,668.88,668.37,1.6814167]
[1752111072200,2.2306827,668.89,668.36,1.6814167]
[1752111072700,0.26025405,668.97,668.01,1.505]
[1752111072701,2.2306827,668.93,668.34,1.6814167]
[1752111073196,2.2306827,668.93,668.33,1.6814167]
[1752111075903,2.2306827,668.93,668.33,1.6813438]
[1752111077099,2.2306827,668.93,668.34,1.6813438]
[1752111078510,2.2306827,668.96,668.31,1.6813438]
[1752111080207,2.49093675,668.97,668.31,1.6813438]
[1752111082108,0.26025405,668.97,668.3,1.6813438]
[1752111082606,2.49093675,668.97,668.31,1.6813438]
[1752111083105,2.2306827,668.96,668.31,1.6813438]
[1752111084105,2.49093675,668.97,668.31,1.6813438]
[1752111086012,2.2306827,668.96,668.32,1.6813438]
[1752111088511,2.2306827,668.93,668.34,1.6813438]
[1752111090018,2.2306827,668.92,668.35,1.6813438]
[1752111090412,2.2306827,668.93,668.35,1.6813438]
[1752111090717,2.2306827,668.93,668.34,1.6813438]
[1752111091924,2.2306827,668.9,668.36,1.6813438]
[1752111092516,2.2306827,668.9,668.37,1.5245928]
[1752111092814,0.26025405,668.97,668.38,1.5245928]
[1752111093012,0.26025405,668.97,668.39,1.5245928]
[1752111093217,0.26025405,668.97,668.4,1.5245928]
[1752111093517,0.26025405,668.97,668.41,1.5245928]
[1752111093816,0.26025405,668.97,668.42,1.5245928]
[1752111094018,0.26025405,668.97,668.37,1.6813438]
[1752111094019,0.26025405,668.97,668.43,1.5245928]
[1752111094216,0.26025405,668.97,668.44,1.5245928]
[1752111094416,0.26025405,668.97,668.45,1.5245928]
[1752111094619,0.26025405,668.97,668.46,1.5245928]
[1752111094819,0.26025405,668.97,668.47,1.5245928]
[1752111095020,0.26025405,668.97,668.48,1.5245928]
[1752111095221,0.26025405,668.97,668.49,1.5245928]
[1752111095519,0.26025405,668.97,668.5,1.5245928]
[1752111095715,0.26025405,668.97,668.51,1.5245928]
[1752111095921,0.26025405,668.97,668.52,1.5245928]
[1752111096121,0.26025405,668.97,668.53,1.5245928]
[1752111096421,0.26025405,668.97,668.54,1.5245928]
[1752111096618,0.26025405,668.97,668.55,1.5245928]
[1752111096822,0.26025405,668.97,668.56,1.5245928]
[1752111097021,0.26025405,668.97,668.57,1.5245928]
[1752111097218,0.26025405,668.97,668.58,1.5245928]
[1752111097422,0.26025405,668.97,668.59,1.5245928]
[1752111097622,0.26025405,668.97,668.37,1.6813438]
[1752111097820,0.26025405,668.97,668.38,1.5245879]
[1752111098022,0.26025405,668.97,668.39,1.5245879]
[1752111098224,0.26025405,668.97,668.4,1.5245879]
[1752111098523,0.26025405,668.97,668.41,1.5245879]
[1752111098820,0.26025405,668.97,668.42,1.5245879]
[1752111099018,0.26025405,668.97,668.43,1.5245879]
[1752111099218,0.26025405,668.97,668.44,1.5245879]
[1752111099423,0.26025405,668.97,668.45,1.5245879]
[1752111099721,0.26025405,668.97,668.46,1.5245879]
[1752111099920,0.26025405,668.97,668.47,1.5245879]
[1752111100122,0.26025405,668.97,668.48,1.5245879]
[1752111100318,0.26025405,668.97,668.49,1.5245879]
[1752111100624,0.26025405,668.97,668.5,1.5245879]
[1752111100823,0.26025405,668.97,668.51,1.5245879]
[1752111101023,0.26025405,668.97,668.39,1.6813438]
[1752111101024,0.26025405,668.97,668.52,1.5245879]
[1752111101218,0.26025405,668.97,668.53,1.5245879]
[1752111101522,0.26025405,668.97,668.54,1.5245879]
[1752111101720,0.26025405,668.97,668.55,1.5245879]
[1752111101923,0.26025405,668.97,668.56,1.5245879]
[1752111102120,0.26025405,668.97,668.57,1.5245879]
[1752111102319,0.26025405,668.97,668.58,1.5245879]
[1752111102521,0.26025405,668.97,668.59,1.5245879]
[1752111102721,0.26025405,668.97,668.39,1.6813438]
[1752111102925,0.26025405,668.97,668.4,1.5245858]
[1752111103125,0.26025405,668.97,668.41,1.5245858]
[1752111103422,0.26025405,668.97,668.42,1.5245858]
[1752111103720,0.26025405,668.97,668.43,1.5245858]
[1752111103923,0.26025405,668.97,668.44,1.5245858]
[1752111104124,0.26025405,668.97,668.45,1.5245858]
[1752111104423,0.26025405,668.97,668.46,1.5245858]
[1752111104625,0.26025405,668.97,668.47,1.5245858]
[1752111104822,0.26025405,668.97,668.48,1.5245858]
[1752111105026,0.26025405,668.97,668.49,1.5245858]
[1752111105221,0.26025405,668.97,668.5,1.5245858]
[1752111105424,0.26025405,668.97,668.51,1.5245858]
[1752111105623,0.26025405,668.97,668.52,1.5245858]
[1752111105820,0.26025405,668.97,668.53,1.5245858]
[1752111106024,0.26025405,668.97,668.54,1.5245858]
[1752111106227,0.26025405,668.97,668.55,1.5245858]
[1752111106527,0.26025405,668.97,668.56,1.5245858]
[1752111106827,0.26025405,668.97,668.57,1.5245858]
[1752111107024,0.26025405,668.97,668.58,1.5245858]
[1752111107227,0.26025405,668.97,668.59,1.5245858]
[1752111107428,0.26025405,668.97,668.39,1.6813438]
[1752111107626,3.60382355,668.97,668.4,1.5246043]
[1752111107925,3.60382355,668.97,668.41,1.5246043]
[1752111108129,3.60382355,668.97,668.42,1.5246043]
[1752111108428,3.60382355,668.97,668.43,1.5246043]
[1752111108628,3.60382355,668.97,668.44,1.5246043]
[1752111108829,3.60382355,668.97,668.45,1.5246043]
[1752111109030,3.60382355,668.97,668.46,1.5246043]
[1752111109331,3.60382355,668.97,668.47,1.5246043]
[1752111109530,3.60382355,668.97,668.48,1.5246043]
[1752111109726,3.60382355,668.97,668.49,1.5246043]
[1752111110030,3.60382355,668.97,668.5,1.5246043]
[1752111110230,3.60382355,668.97,668.51,1.5246043]
[1752111110529,3.60382355,668.97,668.52,1.5246043]
[1752111110729,3.60382355,668.97,668.53,1.5246043]
[1752111110927,3.60382355,668.97,668.54,1.5246043]
[1752111111127,3.60382355,668.97,668.55,1.5246043]
[1752111111326,3.60382355,668.97,668.56,1.5246043]
[1752111111628,3.60382355,668.97,668.57,1.5246043]
[1752111111825,3.60382355,668.97,668.58,1.5246043]
[1752111112030,3.60382355,668.97,668.59,1.5246043]
[1752111112227,3.60382355,668.97,668.4,1.6813438]
[1752111112430,3.60382355,668.97,668.41,1.52464806]
[1752111112629,3.60382355,668.97,668.42,1.52464806]
[1752111112826,3.60382355,668.97,668.4,1.6813438]
[1752111112827,3.60382355,668.97,668.43,1.52464806]
[1752111113026,3.60382355,668.97,668.44,1.52464806]
[1752111113327,3.60382355,668.97,668.45,1.52464806]
[1752111113530,3.60382355,668.97,668.46,1.52464806]
[1752111113826,3.60382355,668.97,668.47,1.52464806]
[1752111114030,3.60382355,668.97,668.48,1.52464806]
[1752111114227,3.60382355,668.97,668.49,1.52464806]
[1752111114527,3.60382355,668.97,668.5,1.52464806]
[1752111114731,3.60382355,668.97,668.51,1.52464806]
[1752111114928,3.60382355,668.97,668.52,1.52464806]
[1752111115133,3.60382355,668.97,668.53,1.52464806]
[1752111115333,3.60382355,668.97,668.54,1.52464806]
[1752111115530,3.60382355,668.97,668.55,1.52464806]
[1752111115830,3.60382355,668.97,668.56,1.52464806]
[1752111116034,3.60382355,668.97,668.57,1.52464806]
[1752111116333,3.60382355,668.97,668.58,1.52464806]
[1752111116628,3.60382355,668.97,668.59,1.52464806]
[1752111116832,3.60382355,668.97,668.4,1.6813438]
[1752111117033,3.60382355,668.97,668.41,1.52469988]
[1752111117233,3.60382355,668.97,668.42,1.52469988]
[1752111117433,3.60382355,668.97,668.43,1.52469988]
[1752111117631,3.60382355,668.97,668.44,1.52469988]
[1752111117829,3.60382355,668.97,668.45,1.52469988]
[1752111118034,3.60382355,668.97,668.46,1.52469988]
[1752111118234,3.60382355,668.97,668.47,1.52469988]
[1752111118435,3.60382355,668.97,668.48,1.52469988]
[1752111118731,3.60382355,668.97,668.49,3.71969988]
[1752111118931,3.60382355,668.97,668.5,1.52469988]
[1752111119130,3.60382355,668.97,668.51,1.52469988]
[1752111119332,3.60382355,668.97,668.52,1.52469988]
[1752111119534,3.60382355,668.97,668.53,1.52469988]
[1752111119731,3.60382355,668.97,668.54,1.52469988]
[1752111120032,3.60382355,668.97,668.55,1.52469988]
[1752111120236,3.60382355,668.97,668.56,1.52469988]
[1752111120535,3.60382355,668.97,668.57,1.52469988]
[1752111120736,0.26025405,668.97,668.58,1.52469988]
[1752111120936,0.26025405,668.97,668.59,1.52469988]
[1752111121133,0.26025405,668.97,668.6,1.52469988]
[1752111121333,0.26025405,668.97,668.61,1.52469988]
[1752111121534,0.26025405,668.97,668.49,2.195]
[1752111121836,0.26025405,668.97,668.5,1.5253948]
[1752111122032,0.26025405,668.97,668.51,1.5253948]
[1752111122234,0.26025405,668.97,668.52,1.5253948]
[1752111122435,0.26025405,668.97,668.53,1.5253948]
[1752111122639,2.2367008,668.94,668.49,2.195]
[1752111123637,2.2367008,668.93,668.49,2.195]
[1752111128142,2.2367008,668.94,668.49,2.195]
[1752111130143,2.2367008,668.93,668.49,2.195]
[1752111130441,2.2367008,668.96,668.49,2.195]
[1752111130645,2.2367008,668.92,668.49,2.195]
[1752111140251,2.2367008,668.87,668.49,2.195]
[1752111144053,2.2367008,668.91,668.49,2.195]
[1752111147558,2.2367008,668.92,668.49,2.195]
[1752111148455,2.2367008,668.9,668.49,2.195]
[1752111151862,2.2367008,668.89,668.49,2.195]
[1752111152363,2.2367008,668.94,668.49,2.195]
[1752111152862,2.2367008,668.93,668.49,2.195]
[1752111153958,2.2367008,668.92,668.49,2.195]
[1752111154966,2.2367008,668.93,668.49,2.195]
[1752111156266,2.2367008,668.94,668.49,2.195]
[1752111157063,2.2367008,668.94,668.32,1.682049]
[1752111157465,2.2367008,668.93,668.32,1.682049]
[1752111160764,2.2367008,668.94,668.32,1.682049]
[1752111161867,2.2367008,668.93,668.32,1.682049]
[1752111162068,2.2367008,668.9,668.35,1.682049]
[1752111165669,2.2367008,668.89,668.35,1.682049]
[1752111166073,2.2367008,668.88,668.38,1.682049]
[1752111166470,2.2367008,668.87,668.39,1.682049]
[1752111167469,2.2367008,668.87,668.38,1.682049]
[1752111168276,2.2367008,668.88,668.37,1.682049]
[1752111170075,2.2367008,668.89,668.37,1.682049]
[1752111170676,2.2367008,668.9,668.36,1.682049]
[1752111170977,0.26025405,668.97,668.3,1.682049]
[1752111170978,2.49695485,668.97,668.3,1.682049]
[1752111171176,2.2367008,668.91,668.35,1.682049]
[1752111172076,2.2367008,668.91,668.36,1.682049]
[1752111172681,2.2367008,668.9,668.36,1.682049]
[1752111173682,2.2367008,668.93,668.34,1.682049]
[1752111173881,2.2367008,668.9,668.31,1.682049]
[1752111178985,2.2367008,668.96,668.26,1.682049]
[1752111180283,2.49695485,668.97,668.26,1.682049]
[1752111181288,0.26025405,668.97,668.26,1.682049]
[1752111181985,2.49695485,668.97,668.26,1.682049]
[1752111182287,2.2367008,668.91,668.31,1.682049]
[1752111185387,2.2367008,668.92,668.3,1.682049]
[1752111186191,2.2367008,668.91,668.31,1.682049]
[1752111187788,2.2367008,668.91,668.16,2.2368817]
[1752111187988,2.2367008,668.9,668.31,1.6816326]
[1752111190294,2.2367008,668.92,668.3,1.6816326]
[1752111190999,2.2367008,668.91,668.3,1.6816326]
[1752111192099,2.2367008,668.9,668.31,1.6816326]
[1752111194402,2.2367008,668.91,668.3,1.6816326]
[1752111195003,2.2367008,668.92,668.3,1.6816326]